Cogmind - Beta 10.2 @@@ ROGUE MODE // 2021.02.16 @ 14:31:57 Player: Momo Result: Destroyed by Lightning with EMDS Performance ------------- Evolutions (5) 2500 Regions Visited (25) 5000 Robots Destroyed (181) 905 Value Destroyed (10301) 10301 Prototype IDs (25) 500 Alien Tech Used (0) 0 Bonus (6849) 6849 TOTAL SCORE: 26055 Bonus ------- High Alert Combat Kills 191 Follower Combat Kills 3007 Entered Garrisons 1200 Used RIF Installer 3000 Network Hubs Disabled 200 Aligned with FarCom 300 Met R17 at Cetus 500 Friendly Fire -1549 Cogmind --------- Core Integrity 0/1000 Matter 235/300 Energy 75/100 System Corruption 27% Temperature Cool (0) Movement Core (50) Location -5/Hub_04(d) Parts ------- > --- POWER (1) -------- (None) > --- PROPULSION (3) --- (None) > --- UTILITY (10) ----- Advanced Weight Redist. System Advanced Hacking Suite Relay Coupler [Swarmer] (39) Relay Coupler [Duelist] (29) Relay Coupler [Hunter] (18) Trap Reconfigurator > --- WEAPON (3) ------- (None) > --- INVENTORY (4) ---- Advanced Force Booster Decoy Drone Bay (16/16) Improved Remote Datajack Peak State ------------ > --- POWER ------------ Quantum Reactor > --- PROPULSION ------- Improved Medium Treads Centrium Heavy Treads > --- UTILITY ---------- Large Storage Unit Large Storage Unit Large Storage Unit Large Storage Unit Large Storage Unit Centrium Medium Armor Plating Centrium Medium Armor Plating Centrium Medium Armor Plating Hacking Suite Advanced Hacking Suite > --- WEAPON ----------- KE Penetrator KE Penetrator Improved KE Penetrator > --- INVENTORY -------- Light Quantum Reactor Light Quantum Reactor Light Treads Matter Compressor Advanced Weight Redist. System Improved Signal Interpreter Advanced Melee Analysis Suite Advanced Force Booster Improved Overload Amplifier Damper Plating Improved System Shield Relay Coupler [Swarmer] Relay Coupler [Swarmer] Relay Coupler [Swarmer] Relay Coupler [Brawler] Relay Coupler [Duelist] Relay Coupler [Duelist] Relay Coupler [Duelist] Relay Coupler [Demolisher] Relay Coupler [Hunter] Relay Coupler [Hunter] Trap Reconfigurator Advanced Recalibrator Decoy Drone Bay Magnetic Acceleration Cannon Enhanced Gauss Cannon Missile Launcher Remote Datajack Improved Remote Datajack Phasing Sabre [Rating: 110] Favorites ----------- Power Antimatter Reactor Engine Improved Ion Engine Power Core Light Nuclear Core Reactor Antimatter Reactor Propulsion Compact Wheel Treads Light Treads Leg Potential Leg Wheel Compact Wheel Flight Unit VTOL Module Utility Large Storage Unit Device Improved System Backup Module Storage Large Storage Unit Processor Signal Interpreter Hackware Relay Coupler [Grunt] Protection Heavy Reactive Plating Weapon Remote Datajack Energy Gun Advanced Beam Rifle Energy Cannon Nova Cannon Ballistic Gun Gauss Rifle Ballistic Cannon Magnetic Acceleration Cannon Launcher Improved Grenade Launcher Special Weapon Remote Datajack Slashing Weapon Great Axe Piercing Weapon Spear Build | -11 -10 -10 -9 -9 -9 -8 -8 -8 -8 -8 -7 -7 -7 -7 -6 -6 -6 -6 -5 -5 -5 -5 -5 -5 -5 ------- Run | Scr Mat Min Mat Min Exi Min Mat Gar Mat Gar Fac Gar Fac Gar Fac Gar Fac Gar Fac Was Fac Ext Cet Arc Hub Slots Evolved 10 | . . . 2 . . . 2 . . . 2 . . . 2 . . . 2 . . . . . . Power . | . . . . . . . . . . . . . . . . . . . . . . . . . . Propulsion 1 | . . . . . . . 1 . . . . . . . . . . . . . . . . . . Utility 8 | . . . 1 . . . 1 . . . 2 . . . 2 . . . 2 . . . . . . Weapon 1 | . . . 1 . . . . . . . . . . . . . . . . . . . . . . Parts Attached 248 | 6 2 5 15 5 9 1 3 1 15 12 . 33 5 12 18 11 15 17 4 7 7 12 12 4 17 Power 15 | 1 . . 1 1 . . . . 1 1 . 2 . 1 1 . 1 2 . 1 . . 1 . 1 Engine 8 | 1 . . 1 1 . . . . 1 1 . 1 . . . . 1 1 . . . . . . . Core 4 | . . . . . . . . . . . . 1 . 1 1 . . 1 . . . . . . . Reactor 3 | . . . . . . . . . . . . . . . . . . . . 1 . . 1 . 1 Propulsion 49 | 2 . 4 2 . 4 1 1 . 4 1 . 9 2 3 3 4 1 2 . 1 . 1 2 2 . Treads 13 | . . . . . . . . . . . . 3 . . . 1 1 2 . 1 . 1 2 2 . Leg 18 | . . 1 . . 2 . 1 . 2 . . 4 1 3 3 1 . . . . . . . . . Wheel 15 | 2 . 3 2 . 2 1 . . 2 . . . 1 . . 2 . . . . . . . . . Hover . | . . . . . . . . . . . . . . . . . . . . . . . . . . Flight 3 | . . . . . . . . . . 1 . 2 . . . . . . . . . . . . . Utility 106 | 1 1 1 7 . 3 . 1 1 . 4 . 8 3 4 11 4 12 10 4 3 6 7 5 . 10 Device 22 | . . 1 1 . 1 . . . . . . . . 1 3 . 8 1 . 1 1 1 1 . 2 Storage 14 | 1 1 . 2 . 2 . . 1 . . . . 1 . . 2 . 2 . . . 1 1 . . Processor 3 | . . . . . . . . . . 1 . . . . . . . . . . 1 . . . 1 Hackware 43 | . . . . . . . . . . 3 . 5 2 2 6 2 4 5 3 . 2 4 . . 5 Protection 24 | . . . 4 . . . 1 . . . . 3 . 1 2 . . 2 1 2 2 1 3 . 2 Artifact . | . . . . . . . . . . . . . . . . . . . . . . . . . . Weapon 78 | 2 1 . 5 4 2 . 1 . 10 6 . 14 . 4 3 3 1 3 . 2 1 4 4 2 6 Energy Gun 12 | 2 1 . . . . . . . 5 . . 2 . . . 2 . . . . . . . . . Energy Cannon 7 | . . . . . 1 . . . . . . . . 2 . . . 2 . 1 . . . . 1 Ballistic Gun 25 | . . . 4 4 1 . 1 . 4 1 . 3 . 1 1 . . . . . . 1 3 1 . Ballistic Cannon 5 | . . . . . . . . . . 1 . . . . 1 . . . . . 1 . 1 1 . Launcher 11 | . . . 1 . . . . . . 3 . 4 . . . 1 . . . . . 1 . . 1 Special Weapon 10 | . . . . . . . . . . 1 . 3 . 1 1 . . 1 . . . 1 . . 2 Impact Weapon . | . . . . . . . . . . . . . . . . . . . . . . . . . . Slashing Weapon 5 | . . . . . . . . . . . . . . . . . 1 . . 1 . 1 . . 2 Piercing Weapon 3 | . . . . . . . . . 1 . . 2 . . . . . . . . . . . . . Special Melee Weapon . | . . . . . . . . . . . . . . . . . . . . . . . . . . Unidentified Prototypes 8 | . . 1 . . 3 . . . 1 . . . . . . . . . . . . . 3 . . Parts Lost 79 | . 5 1 4 1 . 1 1 1 2 2 . 17 1 8 2 5 3 2 1 . 1 1 4 3 13 Power 12 | . 1 . . 1 . . . 1 . . . 2 1 1 . 1 1 1 . . . . 1 . 1 Propulsion 21 | . 1 1 2 . . 1 . . 1 2 . 5 . 2 . . 1 1 1 . . . 1 . 2 Utility 14 | . . . 1 . . . . . . . . 1 . 1 1 2 . . . . . 1 1 . 6 Weapon 32 | . 3 . 1 . . . 1 . 1 . . 9 . 4 1 2 1 . . . 1 . 1 3 4 Highest Loss Streak 13 | . 5 1 3 1 . 1 1 1 1 1 . 6 1 4 2 4 1 1 1 . 1 1 2 2 13 Average Slot Usage (%) 90 | . 87 6 94 96 99 99 84 91 91 91 76 90 95 74 93 92 94 93 98 93 88 92 88 83 86 Engine 3 | . 12 . 10 8 11 11 9 1 4 9 7 3 . . . . 2 2 5 1 . . . . . Reactor 1 | . . . . . . . . . . . . . . . . . . . . 3 5 5 4 5 4 Treads 6 | . . . . . . . . . . . . 4 6 . . 4 7 15 16 11 11 11 10 7 9 Leg 2 | . . 4 . . . . 3 9 8 . . 10 6 7 19 6 . . . . . . . . . Wheel 7 | . 25 2 20 22 21 21 18 18 17 18 15 1 4 6 . 8 11 3 . . . . . . . Device 1 | . . . 1 . . . . . . . . . . 3 1 6 3 4 . 1 . . . 5 . Storage 27 | . 23 . 19 22 29 33 27 34 36 27 23 23 23 30 26 26 26 26 29 29 29 30 29 29 27 Hackware 12 | . . . . . . . . . . 4 . 6 16 8 12 11 20 14 21 17 13 25 11 11 19 Protection 4 | . . . 8 11 2 . . 1 . . . 3 3 . 8 7 . 3 4 8 6 . 12 11 6 Energy Gun 1 | . 23 . . . . . . . 13 9 7 1 7 . . 2 2 . . . . . . . . Energy Cannon 1 | . . . . . . . . . . . . . . 4 . . . 4 5 5 4 . . . . Ballistic Gun 6 | . . . 28 22 21 22 21 27 9 2 . 7 . 2 10 . . . . . . 4 16 3 . Ballistic Cannon 2 | . . . . . . . . . . 7 7 . . . . 6 6 1 . . . 3 . 5 4 Launcher 2 | . . . 3 11 11 11 3 . . 2 . 2 7 . . 2 . . . . . 1 . . . Special Weapon 3 | . . . . . . . . . . 4 7 3 . . 5 6 6 6 5 5 5 2 . . 3 Slashing Weapon 1 | . . . . . . . . . . . . . . . . . 2 6 5 4 5 3 . . 3 Naked Turns 131 | . 12 119 . . . . . . . . . . . . . . . . . . . . . . . Heaviest Build 154 | 10 13 . 54 54 67 67 68 76 84 88 65 75 81 84 112 114 84 118 105 121 152 148 154 137 131 Greatest Support 110 | 26 26 3 26 26 30 32 32 32 32 32 32 60 40 50 60 65 60 70 70 90 90 100 110 108 108 Greatest Overweight (x) 30 | . . . 5 2 6 4 2 2 25 2 2 4 2 2 3 3 8 2 2 2 1 1 1 1 30 Average Overweight (x) 1 | . . . 1 1 2 2 1 1 3 2 2 1 1 1 1 1 2 1 1 1 1 1 . 1 1 Largest Inventory Capacity 34 | 6 6 4 16 16 22 22 22 28 28 28 22 22 28 28 28 28 28 34 34 34 34 34 34 34 34 Average Capacity 27 | 4 5 4 14 16 20 22 22 26 28 22 22 22 22 28 28 28 28 28 34 34 34 34 34 34 32 Most Carried 34 | . 3 4 15 16 22 22 22 28 28 28 22 22 23 28 28 28 28 31 34 34 34 34 34 33 32 Average Carried 26 | . 1 3 13 15 18 21 21 26 27 22 22 19 21 23 26 27 27 27 32 33 33 33 33 31 29 Final Capacity 34 | 6 4 4 16 16 22 22 22 28 28 22 22 22 28 28 28 28 28 34 34 34 34 34 34 34 4 Final Carried 34 | . 3 4 15 16 22 22 22 28 28 22 22 22 23 27 27 28 27 31 33 34 33 33 33 31 4 Class Distribution -------------------- 60% | Botlord-Mutant 14% | Bothacker-Mutant 5% | Tank 5% | Mutant 4% | Bothacker-Skirmisher 3% | Hauler-Mutant Dominant Class ---------------- Mutant | -10/Materials Mutant | -10/Mines Tank | -9/Materials Mutant | -9/Mines Hauler-Mutant | -9/Exiles Hauler-Mutant | -8/Mines Hauler-Skirmisher | -8/Materials Hauler-Skirmisher | -8/Garrison Bothacker-Skirmisher | -8/Materials Bothacker-Mutant | -8/Garrison Bothacker-Mutant | -7/Factory Bothacker-Mutant | -7/Garrison Bothacker-Mutant | -7/Factory Botlord-Mutant | -7/Garrison Botlord-Mutant | -6/Factory Botlord-Mutant | -6/Garrison Botlord-Mutant | -6/Factory Botlord-Mutant | -6/Garrison Botlord-Mutant | -5/Factory Botlord-Mutant | -5/Waste Botlord-Mutant | -5/Factory Botlord-Mutant | -5/Extension Botlord-Tank | -5/Cetus Botlord-Mutant | -5/Archives Botlord-Mutant | -5/Hub_04(d) Resources | -11 -10 -10 -9 -9 -9 -8 -8 -8 -8 -8 -7 -7 -7 -7 -6 -6 -6 -6 -5 -5 -5 -5 -5 -5 -5 ----------- Run | Scr Mat Min Mat Min Exi Min Mat Gar Mat Gar Fac Gar Fac Gar Fac Gar Fac Gar Fac Was Fac Ext Cet Arc Hub Matter Collected 8376 | 185 40 70 793 75 200 37 300 41 243 364 . 565 40 160 496 287 510 703 65 55 176 1802 637 189 343 Remotely . | . . . . . . . . . . . . . . . . . . . . . . . . . . Salvage Created 6716 | . 62 . 1238 106 . 50 418 50 527 428 . 638 62 631 346 349 157 88 58 . 53 236 574 189 456 Parts 367 | . 3 . 102 8 . 6 12 2 32 23 . 35 4 22 14 10 13 7 2 . 1 14 25 5 27 Haulers Intercepted 1 | . . . . . . . . . . . . . . . . . . . . . . . . . 1 Recyclers Shooed 7 | . . . 1 . . . 1 . 3 . . . . . . . 1 . . . . 1 . . . Parts Field Recycled . | . . . . . . . . . . . . . . . . . . . . . . . . . . Retrieved Matter . | . . . . . . . . . . . . . . . . . . . . . . . . . . Parts Self-Destructed . | . . . . . . . . . . . . . . . . . . . . . . . . . . Prevented . | . . . . . . . . . . . . . . . . . . . . . . . . . . Kills | -11 -10 -10 -9 -9 -9 -8 -8 -8 -8 -8 -7 -7 -7 -7 -6 -6 -6 -6 -5 -5 -5 -5 -5 -5 -5 ------- Run | Scr Mat Min Mat Min Exi Min Mat Gar Mat Gar Fac Gar Fac Gar Fac Gar Fac Gar Fac Was Fac Ext Cet Arc Hub Combat Hostiles Destroyed 150 | . 1 . 30 5 . 3 7 1 8 14 . 16 1 13 9 16 3 2 1 . 1 2 9 4 4 Melee 16 | . . . . . . . . . . . . 4 1 5 . . 1 1 1 . . . . . 3 Guns 79 | . 1 . 28 4 . 3 6 1 8 3 . 8 . . 5 2 1 . . . . . 9 . . Cannons 27 | . . . . . . . . . . 2 . 1 . 7 4 3 1 1 . . 1 2 . 4 1 AOE 27 | . . . 2 1 . . 1 . . 9 . 3 . . . 11 . . . . . . . . . Classes Destroyed 16 | . 2 . 9 . . . 1 . . . . . . . 2 . . 1 . . . . . . 1 Worker 4 | . . . 2 . . . . . 1 . . . . . . . 1 . . . . . . . . Builder 7 | . 1 . . . . . . . 1 . . . . . . . 1 . . . . 4 . . . Hauler 1 | . . . . . . . . . . . . . . . . . . . . . . . . . 1 Recycler 3 | . . . 1 . . . 1 . 1 . . . . . . . . . . . . . . . . Mechanic 1 | . . . 1 . . . . . . . . . . . . . . . . . . . . . . Operator 2 | . . . 1 . . . . . . . . . . . . . . . . . . . . . 1 Watcher 6 | . . . 4 . . . . . . . . . . . . . . . . . . . . . 2 Swarmer 43 | . . . 10 3 . 3 . . . 8 . 8 . 2 5 3 . . . . . . . . 1 Grunt 57 | . 1 . 11 2 . . 4 . 4 3 . 2 . 9 2 11 1 . 1 . 1 . 4 . 1 Brawler 3 | . . . 1 . . . . . . 1 . . . . . 1 . . . . . . . . . Duelist 3 | . . . 1 . . . . . . 1 . 1 . . . . . . . . . . . . . Sentry 32 | . . . 7 . . . 2 . 4 2 . 6 1 2 . . . . . . . 2 . 4 2 Specialist 1 | . . . . . . . . . . . . . . . . . . 1 . . . . . . . Hunter 3 | . . . . . . . 1 1 . . . . . . . . . . . . . . . . 1 Programmer 6 | . . . . . . . . . . . . . . . 1 1 2 1 . . . . 1 . . Behemoth 1 | . . . . . . . . . . . . . . . 1 . . . . . . . . . . Cetus Guard 4 | . . . . . . . . . . . . . . . . . . . . . . . 4 . . Surgeon 1 | . . . . . . . . . . . . . . . . . . . . . . 1 . . . Thug 1 | . . . . . . . . . . . . . . . . . . . . . . 1 . . . Guerrilla 2 | . . . . . . . . . . . . . . . . . . . . . . 2 . . . Best Kill Streak 9 | . 2 . 8 3 . 3 5 1 3 5 . 5 1 8 4 9 1 1 1 . 1 2 5 2 3 Combat Bots Only 9 | . 1 . 5 3 . 3 4 1 3 5 . 5 1 8 4 9 1 1 1 . 1 1 5 2 2 Max Kills in Single Turn 3 | . 1 . 2 1 . 1 1 1 1 2 . 3 1 1 1 2 1 1 1 . 1 2 1 1 1 Gunslinging 1 | . . . 1 . . . . . . . . . . . . . . . . . . . . . . Exploded 2 | . . . 2 1 . . 1 . . 2 . 2 . . . 2 . . . . . . . . . Melee 1 | . . . . . . . . . . . . 1 1 1 . . 1 1 1 . . . . . 1 Uniques/NPCs Destroyed . | . . . . . . . . . . . . . . . . . . . . . . . . . . Combat | -11 -10 -10 -9 -9 -9 -8 -8 -8 -8 -8 -7 -7 -7 -7 -6 -6 -6 -6 -5 -5 -5 -5 -5 -5 -5 -------- Run | Scr Mat Min Mat Min Exi Min Mat Gar Mat Gar Fac Gar Fac Gar Fac Gar Fac Gar Fac Was Fac Ext Cet Arc Hub Damage Taken 15429 | . 430 129 927 75 . 69 433 64 409 279 . 2225 244 1231 505 943 451 308 212 8 153 761 1775 1536 2262 Core 2579 | . 178 29 233 10 . 6 88 11 106 21 . 351 17 224 58 118 90 30 . 8 . 53 79 132 737 Absorbed by Shields . | . . . . . . . . . . . . . . . . . . . . . . . . . . Core Remaining (%) 48 | 100 . 17 . . . 37 . . . 58 . . . 15 . . . 65 . . . . . . . Volleys Fired 725 | . 12 . 69 9 . 4 24 5 28 42 . 50 1 33 35 39 41 32 7 24 18 158 54 24 16 Largest 3 | . 2 . 3 3 . 2 3 3 3 3 . 2 1 1 2 2 1 1 1 1 1 2 3 3 2 Hottest 171 | . 90 . 82 92 . 56 92 84 171 136 . 105 80 120 120 92 69 80 80 80 113 86 101 143 93 Shots Fired 1135 | . 20 . 200 19 . 8 62 13 62 67 . 66 1 33 51 55 43 33 7 24 18 168 124 43 18 Gun 658 | . 20 . 194 18 . 8 59 13 62 23 . 44 1 1 34 9 18 . . . . 15 124 15 . Cannon 185 | . . . . . . . . . . 24 . 2 . 25 4 22 10 13 2 21 8 16 . 28 10 Launcher 149 | . . . 6 1 . . 3 . . 11 . 7 . . . 22 . . . . . 94 . . 5 Special 143 | . . . . . . . . . . 9 . 13 . 7 13 2 15 20 5 3 10 43 . . 3 Kinetic 667 | . . . 194 18 . 8 59 13 23 26 . 40 . 1 34 22 10 4 . . 7 31 124 43 10 Thermal 164 | . 16 . . . . . . . 31 21 . 6 1 25 4 9 18 9 2 21 1 . . . . Explosive 134 | . . . 6 1 . . 3 . . 2 . 1 . . . 22 . . . . . 94 . . 5 Electromagnetic 27 | . 4 . . . . . . . 8 9 . 6 . . . . . . . . . . . . . Robot Hit Streak 29 | . 3 . 10 5 . 9 10 2 9 11 . 8 2 18 8 9 12 14 5 5 3 11 21 29 5 Robot Miss Streak 9 | . 3 . 4 2 . . 3 1 7 1 . 9 1 1 7 7 2 3 1 2 1 3 3 1 1 Penetration Max 1 | . . . . . . . 1 . 1 . . . . . . . . . . . . 1 1 1 . Secondary Targets 13 | . . . 7 1 . . 1 . 1 . . 1 . . . . . . . . . . 2 . . Max Gunslinging Chain 1 | . . . 1 1 . . 1 . 1 . . 1 . . . . . . . . . . 1 . . Shots Hit Robots 712 | . 10 . 99 12 . 7 32 3 30 41 . 66 2 44 43 25 32 19 14 14 13 57 93 40 16 Core Hits 358 | . 5 . 54 5 . 4 12 2 21 22 . 45 1 21 23 38 9 2 3 2 2 29 30 15 13 Critical Hits 23 | . . . 3 . . . 1 1 . . . 1 . . . . 1 . . . . 1 14 1 . Critical Kills 6 | . . . 1 . . . 1 1 . . . . . . . . 1 . . . . . 2 . . Critical Parts Destroyed 13 | . . . 2 . . . . . . . . 1 . . . . . . . . . 1 8 1 . Melee Attacks 176 | . . . . . . . . . 1 . . 21 2 27 . . 6 3 8 . 4 90 . . 14 Impact . | . . . . . . . . . . . . . . . . . . . . . . . . . . Slashing 125 | . . . . . . . . . . . . . . . . . 6 3 8 . 4 90 . . 14 Piercing 51 | . . . . . . . . . 1 . . 21 2 27 . . . . . . . . . . . Sneak Attacks 3 | . . . . . . . . . . . . . . . . . . . 1 . . . . . 2 Combat Hostiles . | . . . . . . . . . . . . . . . . . . . . . . . . . . Follow-up Attacks . | . . . . . . . . . . . . . . . . . . . . . . . . . . Damage Inflicted 19204 | . 160 . 1866 240 . 139 886 61 791 1121 . 1299 32 1323 602 2828 641 191 371 355 227 1360 2512 1184 1015 Guns 8219 | . 160 . 1490 143 . 139 781 61 791 229 . 450 . . 448 164 251 . . . . 267 2512 333 . Cannons 4045 | . . . . . . . . . . 394 . 56 . 842 148 247 224 145 25 355 227 436 . 851 95 Explosions 4794 | . . . 376 97 . . 105 . . 498 . 382 . . . 2417 . . . . . 657 . . 262 Melee 2131 | . . . . . . . . . . . . 411 32 481 . . 166 46 346 . . . . . 649 Ramming 15 | . . . . . . . . . . . . . . . 6 . . . . . . . . . 9 Kinetic 9510 | . . . 1490 143 . 139 781 61 445 417 . 440 . . 448 247 224 . . . 181 703 2512 1184 95 Thermal 2789 | . 133 . . . . . . . 300 206 . 174 . 842 148 164 251 145 25 355 46 . . . . Explosive 3876 | . . . 376 97 . . 105 . . 224 . . . . . 2417 . . . . . 657 . . . Electromagnetic 883 | . 27 . . . . . . . 46 274 . 274 . . . . . . . . . . . . 262 Impact . | . . . . . . . . . . . . . . . . . . . . . . . . . . Slashing 1207 | . . . . . . . . . . . . . . . . . 166 46 346 . . . . . 649 Piercing 924 | . . . . . . . . . . . . 411 32 481 . . . . . . . . . . . Highest Corruption 25 | . . . . . . . . . . . . . . . 9 7 8 9 . . . 5 6 6 25 Average Corruption 6 | . . . . . . . . . . . . . . . 6 7 7 8 . . . 5 5 6 7 Corruption Purged 5 | . . . . . . . . . . . . . . . 2 . . 3 . . . . . . . Effects 210 | . . . . . . . . . . . . . . . 30 35 32 46 . . . . 21 16 30 Message Errors 52 | . . . . . . . . . . . . . . . 8 11 14 7 . . . . 2 4 6 Matter Fused 47 | . . . . . . . . . . . . . . . 9 8 7 11 . . . . 5 3 4 Heat Flow Errors 19 | . . . . . . . . . . . . . . . 2 2 2 8 . . . . 1 . 4 Energy Discharges 24 | . . . . . . . . . . . . . . . . 8 1 7 . . . . 2 1 5 Parts Rejected 3 | . . . . . . . . . . . . . . . 2 . . . . . . . . 1 . Data Loss (minor) 18 | . . . . . . . . . . . . . . . 3 1 1 6 . . . . 3 1 3 Data Loss (major) 8 | . . . . . . . . . . . . . . . 1 1 2 2 . . . . . 1 1 Misfires 7 | . . . . . . . . . . . . . . . 2 1 2 1 . . . . . . 1 Misdirections 3 | . . . . . . . . . . . . . . . . . . . . . . . . . 3 Targeting Errors 23 | . . . . . . . . . . . . . . . 2 1 3 4 . . . . 5 5 3 Weapon Failures 6 | . . . . . . . . . . . . . . . 1 2 . . . . . . 3 . . Overload Shots . | . . . . . . . . . . . . . . . . . . . . . . . . . . Overflow Damage 368 | . . . 22 22 . . . . . 23 . 3 . . . 84 8 . 42 . 24 6 . . 134 Projectiles 56 | . . . . . . . . . . 19 . . . . . . 8 . . . 24 5 . . . Explosions 201 | . . . 22 22 . . . . . 4 . 3 . . . 84 . . . . . 1 . . 65 Melee 111 | . . . . . . . . . . . . . . . . . . . 42 . . . . . 69 Knockbacks 4 | . . . . . . . . . . 1 . . . . . . 1 . . . 1 1 . . . Impact . | . . . . . . . . . . . . . . . . . . . . . . . . . . Kinetic 4 | . . . . . . . . . . 1 . . . . . . 1 . . . 1 1 . . . Secondary . | . . . . . . . . . . . . . . . . . . . . . . . . . . Self-Inflicted Damage 495 | . . . 41 . . . 50 . . . . 18 . . . 118 . . . . . 177 . . 91 Shots 15 | . . . 1 . . . 1 . . . . 2 . . . 4 . . . . . 6 . . 1 Rammed 3 | . . . . . . . . . . . . . . . . . . . . . . . . . 3 Targets Rammed 4 | . . . . . . . . . . . . . . . 1 . . . . . . . . . 3 Kicked 1 | . . . . . . . . . . . . . . . 1 . . . . . . . . . . Crushed . | . . . . . . . . . . . . . . . . . . . . . . . . . . Highest Temperature 451 | . 426 . 122 15 . . 76 15 326 185 . 58 26 336 240 248 115 263 37 166 87 111 451 107 222 Average Temperature 77 | . 264 . 37 10 . . 22 12 122 45 . 15 19 103 51 53 23 84 21 55 32 23 173 67 82 Received Heat Transfer 3471 | . 249 . 237 . . . 153 . 180 45 . 471 84 561 117 345 66 39 99 6 45 108 378 207 81 Effects 12 | . 5 . . . . . . . . . . . . . . . . . . . . . 7 . . Shutdowns 3 | . 1 . . . . . . . . . . . . . . . . . . . . . 2 . . Interference 4 | . . . . . . . . . . . . . . . . . . . . . . . 4 . . Short Circuit 1 | . 1 . . . . . . . . . . . . . . . . . . . . . . . . Damage (minor) 2 | . 1 . . . . . . . . . . . . . . . . . . . . . 1 . . Damage (major) 2 | . 2 . . . . . . . . . . . . . . . . . . . . . . . . Siege Activations . | . . . . . . . . . . . . . . . . . . . . . . . . . . Robots Corrupted 1 | . . . . . . . . . . . . . . . . . . . . . . . . . 1 Combat Hostiles . | . . . . . . . . . . . . . . . . . . . . . . . . . . Parts Fried 5 | . . . . . . . . . . 2 . . . . . . . . . . . . . . 3 Impact Corruptions . | . . . . . . . . . . . . . . . . . . . . . . . . . . Robots Melted 1 | . . . . . . . . . . . . . . 1 . . . . . . . . . . . Combat Hostiles 1 | . . . . . . . . . . . . . . 1 . . . . . . . . . . . Parts Melted 15 | . 2 . . 1 . . . . 1 . . 1 . 5 4 . . 1 . . . . . . . Heat Transferred 5446 | . 359 . . . . . . . 661 370 . 287 . 1594 320 374 444 250 50 700 37 . . . . Parts Sabotaged . | . . . . . . . . . . . . . . . . . . . . . . . . . . Parts Stolen . | . . . . . . . . . . . . . . . . . . . . . . . . . . Parts Stripped . | . . . . . . . . . . . . . . . . . . . . . . . . . . Power Chain Reactions 2 | . . . . . . . . . . 1 . 1 . . . . . . . . . . . . . Missiles Intercepted . | . . . . . . . . . . . . . . . . . . . . . . . . . . Alert | -11 -10 -10 -9 -9 -9 -8 -8 -8 -8 -8 -7 -7 -7 -7 -6 -6 -6 -6 -5 -5 -5 -5 -5 -5 -5 ------- Run | Scr Mat Min Mat Min Exi Min Mat Gar Mat Gar Fac Gar Fac Gar Fac Gar Fac Gar Fac Was Fac Ext Cet Arc Hub Peak Influence 659 | . 30 30 659 165 . 60 246 379 202 632 331 501 390 432 299 594 420 167 434 121 253 311 387 180 393 Initial 331 | . . . 7 65 . . 23 159 184 105 331 231 262 252 219 . 311 151 87 109 . 67 164 106 63 Average 217 | . 9 7 269 66 . 59 122 258 109 462 331 390 308 326 92 403 279 128 315 118 110 146 278 152 125 Maximum Alert Level 2 | . . . 2 . . . 1 1 1 2 1 2 1 2 1 2 2 . 2 . 1 1 1 . 1 Low Security (%) 53 | 100 100 100 37 100 . 100 78 16 92 5 . . . . 82 9 5 100 19 100 88 72 22 100 84 Level 1 29 | . . . 44 . . . 21 83 7 22 100 40 100 77 17 27 87 . 25 . 11 27 77 . 15 Level 2 16 | . . . 17 . . . . . . 71 . 59 . 22 . 62 7 . 55 . . . . . . Level 3 . | . . . . . . . . . . . . . . . . . . . . . . . . . . Level 4 . | . . . . . . . . . . . . . . . . . . . . . . . . . . Level 5 . | . . . . . . . . . . . . . . . . . . . . . . . . . . High Security . | . . . . . . . . . . . . . . . . . . . . . . . . . . Max Security . | . . . . . . . . . . . . . . . . . . . . . . . . . . Squads Dispatched 36 | . 2 . 7 1 . . 3 . 1 . . . . . 3 . 2 . 3 . 6 5 . . 3 Investigation 6 | . . . . 1 . . 1 . 1 . . . . . 1 . . . 1 . . 1 . . . Extermination 2 | . . . . . . . . . . . . . . . . . 1 . . . 1 . . . . Reinforcement 24 | . 2 . 7 . . . 1 . . . . . . . 2 . 1 . 1 . 4 4 . . 2 Assault 1 | . . . . . . . . . . . . . . . . . . . . . . . . . 1 Garrison 3 | . . . . . . . 1 . . . . . . . . . . . 1 . 1 . . . . Intercept . | . . . . . . . . . . . . . . . . . . . . . . . . . . Construction Impeded 5 | . . . 1 . . . . . . . . . . . 1 . . . . . 1 2 . . . Haulers Reinforced 2 | . . . . . . . . . . . . . . . . . 1 . 1 . . . . . . Stealth | -11 -10 -10 -9 -9 -9 -8 -8 -8 -8 -8 -7 -7 -7 -7 -6 -6 -6 -6 -5 -5 -5 -5 -5 -5 -5 --------- Run | Scr Mat Min Mat Min Exi Min Mat Gar Mat Gar Fac Gar Fac Gar Fac Gar Fac Gar Fac Was Fac Ext Cet Arc Hub Distress Signals 18 | . 1 . 5 . . . 1 . 2 . . . . . 1 . . . 2 . . 4 2 . . Communications Jammed . | . . . . . . . . . . . . . . . . . . . . . . . . . . Distress Signals . | . . . . . . . . . . . . . . . . . . . . . . . . . . Times Spotted 390 | . 8 3 56 5 . 3 9 1 11 26 1 35 3 23 25 28 18 22 12 5 22 27 20 5 22 Peak Tracking Total 10 | . 7 2 6 3 . 3 3 . 6 5 1 6 1 8 5 6 3 5 3 2 4 5 8 2 10 Tactical Retreats 27 | . . 2 1 . . . . . . 5 . 3 . 3 1 10 . . . . . . 2 . . Traps | -11 -10 -10 -9 -9 -9 -8 -8 -8 -8 -8 -7 -7 -7 -7 -6 -6 -6 -6 -5 -5 -5 -5 -5 -5 -5 ------- Run | Scr Mat Min Mat Min Exi Min Mat Gar Mat Gar Fac Gar Fac Gar Fac Gar Fac Gar Fac Was Fac Ext Cet Arc Hub Traps Triggered 50 | . . . 1 . . . . . 5 13 . 8 . 3 3 5 2 7 2 . . 1 . . . Indirectly 2 | . . . . . . . . . . 1 . 1 . . . . . . . . . . . . . Trap Hack Attempts . | . . . . . . . . . . . . . . . . . . . . . . . . . . Triggered . | . . . . . . . . . . . . . . . . . . . . . . . . . . Disarmed . | . . . . . . . . . . . . . . . . . . . . . . . . . . Reprogrammed . | . . . . . . . . . . . . . . . . . . . . . . . . . . Reused 3 | . . . . . . . . . . . . . . . . . . . . . 3 . . . . Traps Reconfigurated 44 | . . . . . . . . . . . . . . . 5 . 27 . . . 6 6 . . . Traps Extracted . | . . . . . . . . . . . . . . . . . . . . . . . . . . Installed . | . . . . . . . . . . . . . . . . . . . . . . . . . . Triggered 4 | . . 1 . . . . . . . . . . . . . . . . . . 3 . . . . Machines | -11 -10 -10 -9 -9 -9 -8 -8 -8 -8 -8 -7 -7 -7 -7 -6 -6 -6 -6 -5 -5 -5 -5 -5 -5 -5 ---------- Run | Scr Mat Min Mat Min Exi Min Mat Gar Mat Gar Fac Gar Fac Gar Fac Gar Fac Gar Fac Was Fac Ext Cet Arc Hub Machines Disabled 49 | . . . 5 . . . . 2 . 4 . 3 . 2 . 4 . 3 . . 9 2 2 . 13 Max in Single Turn 11 | . . . 1 . . . . 1 . 1 . 1 . 1 . 1 . 1 . . . 1 1 . 11 Garrison Access 2 | . . . . . . . . . . . . . . . . . . . . . 1 . . . 1 Garrison Relay 17 | . . . . . . . . 2 . 4 . 3 . 2 . 3 . 3 . . . . . . . Network Hub 1 | . . . . . . . . . . . . . . . . . . . . . . . . . 1 Machines Sabotaged . | . . . . . . . . . . . . . . . . . . . . . . . . . . Garrisons Compromised . | . . . . . . . . . . . . . . . . . . . . . . . . . . Overloaded Fab Kills . | . . . . . . . . . . . . . . . . . . . . . . . . . . Fab Network Shutdowns 1 | . . . . . . . . . . . . . . . . . . . 1 . . . . . . Hacking | -11 -10 -10 -9 -9 -9 -8 -8 -8 -8 -8 -7 -7 -7 -7 -6 -6 -6 -6 -5 -5 -5 -5 -5 -5 -5 --------- Run | Scr Mat Min Mat Min Exi Min Mat Gar Mat Gar Fac Gar Fac Gar Fac Gar Fac Gar Fac Was Fac Ext Cet Arc Hub Machines Accessed 54 | . . 1 6 1 . . 2 . 5 . 1 . 6 . 3 . 10 . 2 . 4 7 1 1 4 Terminals 33 | . . . 5 . . . 1 . 4 . . . 4 . 1 . 6 . . . 1 7 1 . 3 Fabricators 6 | . . . . . . . . . . . . . 1 . . . 2 . 1 . 2 . . . . Repair Stations . | . . . . . . . . . . . . . . . . . . . . . . . . . . Recycling Units 1 | . . . . . . . . . . . . . . . . . 1 . . . . . . . . Scanalyzers 2 | . . . 1 . . . . . . . . . . . 1 . . . . . . . . . . Garrison Access 9 | . . . . . . . 1 . 1 . 1 . 1 . 1 . 1 . 1 . 1 . . . 1 Total Hacks 130 | . . 1 16 1 . . 3 . 15 . 1 . 19 . 5 . 20 . 4 . 5 24 2 3 11 Successful 73 | . . 1 10 1 . . 1 . 10 . 1 . 12 . 4 . 10 . 2 . 1 10 1 3 6 Failed 57 | . . . 6 . . . 2 . 5 . . . 7 . 1 . 10 . 2 . 4 14 1 . 5 Catastrophic 6 | . . . 1 . . . 1 . . . . . . . . . 2 . . . 1 . . . 1 Database Lockouts . | . . . . . . . . . . . . . . . . . . . . . . . . . . Manual 45 | . . . 8 . 1 . 2 . 6 . . . 9 . . . 7 . 2 . 1 4 . . 5 Terminals 93 | . . . 14 . . . 2 . 14 . . . 13 . 2 . 14 . . . 1 24 2 . 7 Fabricators 12 | . . . . . . . . . . . . . 4 . . . 3 . 2 . 3 . . . . Repair Stations . | . . . . . . . . . . . . . . . . . . . . . . . . . . Recycling Units 2 | . . . . . . . . . . . . . . . . . 2 . . . . . . . . Scanalyzers 4 | . . . 2 . . . . . . . . . . . 2 . . . . . . . . . . Garrison Access 14 | . . . . . . . 1 . 1 . 1 . 2 . 1 . 1 . 2 . 1 . . . 4 Terminal Hacks 45 | . . 1 8 1 . . . . 9 . . . 5 . 1 . 3 . . . . 9 1 3 4 Record 3 | . . . . . . . . . . . . . . . . . . . . . . . . 3 . Part Schematic 4 | . . . . . . . . . . . . . 1 . . . . . . . . 3 . . . Robot Analysis 6 | . . . 3 . . . . . 2 . . . 1 . . . . . . . . . . . . Prototype ID Bank 5 | . . . . . . . . . 3 . . . 2 . . . . . . . . . . . . Open Door 6 | . . 1 . 1 . . . . . . . . . . . . . . . . . 3 1 . . Branch Access Points 1 | . . . . . . . . . . . . . . . . . 1 . . . . . . . . Terminal Index 3 | . . . . . . . . . . . . . 1 . . . 1 . . . . 1 . . . Unreport Threat 6 | . . . 3 . . . . . 3 . . . . . . . . . . . . . . . . Locate Traps 5 | . . . . . . . . . 1 . . . . . 1 . 1 . . . . 1 . . 1 Recall Investigation 1 | . . . 1 . . . . . . . . . . . . . . . . . . . . . . Recall Reinforcements 2 | . . . 1 . . . . . . . . . . . . . . . . . . . . . 1 Registered Components 1 | . . . . . . . . . . . . . . . . . . . . . . . . . 1 Zone Layout 2 | . . . . . . . . . . . . . . . . . . . . . . 1 . . 1 Fabricator Hacks 6 | . . . . . . . . . . . . . 3 . . . 2 . 1 . . . . . . Load Schematic 1 | . . . . . . . . . . . . . 1 . . . . . . . . . . . . Build 5 | . . . . . . . . . . . . . 2 . . . 2 . 1 . . . . . . Repair Station Hacks . | . . . . . . . . . . . . . . . . . . . . . . . . . . Recycling Unit Hacks 1 | . . . . . . . . . . . . . . . . . 1 . . . . . . . . Retrieve Matter 1 | . . . . . . . . . . . . . . . . . 1 . . . . . . . . Scanalyzer 4 | . . . 2 . . . . . . . . . . . 2 . . . . . . . . . . Insert Component 2 | . . . 1 . . . . . . . . . . . 1 . . . . . . . . . . Analyze 2 | . . . 1 . . . . . . . . . . . 1 . . . . . . . . . . Garrison Access Hacks 9 | . . . . . . . 1 . 1 . 1 . 1 . 1 . 1 . 1 . 1 . . . 1 Unlock Access 8 | . . . . . . . 1 . 1 . 1 . 1 . 1 . 1 . 1 . . . . . 1 Seal Access 1 | . . . . . . . . . . . . . . . . . . . . . 1 . . . . Unauthorized Hacks 8 | . . . . . . . . . . . . . 3 . . . 3 . . . . 1 . . 1 Terminals 6 | . . . . . . . . . . . . . 3 . . . 2 . . . . 1 . . . Assimilate 1 | . . . . . . . . . . . . . . . . . . . . . . 1 . . . Botnet 3 | . . . . . . . . . . . . . 2 . . . 1 . . . . . . . . Operators 2 | . . . . . . . . . . . . . 1 . . . 1 . . . . . . . . Fabricators 1 | . . . . . . . . . . . . . . . . . 1 . . . . . . . . Prioritize 1 | . . . . . . . . . . . . . . . . . 1 . . . . . . . . Repair Stations . | . . . . . . . . . . . . . . . . . . . . . . . . . . Recycling Units . | . . . . . . . . . . . . . . . . . . . . . . . . . . Scanalyzers . | . . . . . . . . . . . . . . . . . . . . . . . . . . Garrison Access 1 | . . . . . . . . . . . . . . . . . . . . . . . . . 1 Reprogram 1 | . . . . . . . . . . . . . . . . . . . . . . . . . 1 Data Cores Recovered 1 | . . . 1 . . . . . . . . . . . . . . . . . . . . . . Used . | . . . . . . . . . . . . . . . . . . . . . . . . . . Hacking Detections 42 | . . . 5 . . . 2 . 4 . . . 6 . 3 . 8 . 2 . 3 6 . . 3 Full Trace Events 2 | . . . . . . . 1 . . . . . . . . . . . . . . 1 . . . Feedback Events . | . . . . . . . . . . . . . . . . . . . . . . . . . . Feedback Blocked . | . . . . . . . . . . . . . . . . . . . . . . . . . . Robot Schematics Acquired . | . . . . . . . . . . . . . . . . . . . . . . . . . . Robots Built 3 | . . . . . . . . . . . . . . . . . 3 . . . . . . . . Matter 285 | . . . . . . . . . . . . . . . . . 285 . . . . . . . . Time 152 | . . . . . . . . . . . . . . . . . 152 . . . . . . . . Total Robot Build Rating 15 | . . . . . . . . . . . . . . . . . 15 . . . . . . . . Part Schematics Acquired 6 | . . . 1 . . . . . . . . . 1 . 1 . . . . . . 3 . . . Parts Built 6 | . . . . . . . . . . . . . 2 . . . 2 . 2 . . . . . . Matter 672 | . . . . . . . . . . . . . 204 . . . 190 . 278 . . . . . . Time 166 | . . . . . . . . . . . . . 50 . . . 47 . 69 . . . . . . Total Part Build Rating 30 | . . . . . . . . . . . . . 2 . . . 10 . 18 . . . . . . Parts Repaired . | . . . . . . . . . . . . . . . . . . . . . . . . . . Time . | . . . . . . . . . . . . . . . . . . . . . . . . . . Parts Recycled . | . . . . . . . . . . . . . . . . . . . . . . . . . . Recycled Matter . | . . . . . . . . . . . . . . . . . . . . . . . . . . Retrieved Matter . | . . . . . . . . . . . . . . . . . . . . . . . . . . Retrieved Components . | . . . . . . . . . . . . . . . . . . . . . . . . . . Parts Scanalyzed 2 | . . . 1 . . . . . . . . . . . 1 . . . . . . . . . . Part Schematics Acquired 2 | . . . 1 . . . . . . . . . . . 1 . . . . . . . . . . Parts Damaged 1 | . . . . . . . . . . . . . . . 1 . . . . . . . . . . Bothacking | -11 -10 -10 -9 -9 -9 -8 -8 -8 -8 -8 -7 -7 -7 -7 -6 -6 -6 -6 -5 -5 -5 -5 -5 -5 -5 ------------ Run | Scr Mat Min Mat Min Exi Min Mat Gar Mat Gar Fac Gar Fac Gar Fac Gar Fac Gar Fac Was Fac Ext Cet Arc Hub Used RIF Installer 6 | . . . . . . . . 1 . 1 . 1 . 1 . 1 . 1 . . . . . . . Threat Obfuscator 1 | . . . . . . . . . . 1 . . . . . . . . . . . . . . . Zone Cloak 1 | . . . . . . . . . . . . 1 . . . . . . . . . . . . . Watcher Feeds 1 | . . . . . . . . . . . . . . . . 1 . . . . . . . . . Autoassimilate 2 | . . . . . . . . . . . . . . 1 . . . 1 . . . . . . . Robots Hacked 76 | . . . . . . . . . . 7 . 7 . 5 12 2 12 12 4 2 4 7 . . 2 Non-combat 12 | . . . . . . . . . . . . . . . 3 . 3 . 1 . 3 2 . . . Combat 64 | . . . . . . . . . . 7 . 7 . 5 9 2 9 12 3 2 1 5 . . 2 Autoassimilated 10 | . . . . . . . . . . . . . . 1 2 1 2 2 . . . 2 . . . Robot Hacks Applied 67 | . . . . . . . . . . 7 . 7 . 4 11 1 10 10 4 2 4 5 . . 2 parse_system 1 | . . . . . . . . . . . . . . . . . . . . . . . . . 1 drop_inventory 2 | . . . . . . . . . . . . . . . . . 2 . . . . . . . . ignore_parts 1 | . . . . . . . . . . . . . . . . . . . . . . 1 . . . purge_threat 1 | . . . . . . . . . . . . . . . 1 . . . . . . . . . . ignore_targets 1 | . . . . . . . . . . . . . . . . . . . . 1 . . . . . scatter_targeting 1 | . . . . . . . . . . . . . . . . . . . . . . 1 . . . overload_power 1 | . . . . . . . . . . . . . . . . . . . . 1 . . . . . disable_weapons 2 | . . . . . . . . . . . . . . . 1 . . 1 . . . . . . . overwrite_iff 2 | . . . . . . . . . . 2 . . . . . . . . . . . . . . . streamctrl_high 2 | . . . . . . . . . . . . 1 . . . . . 1 . . . . . . . formatsys_low 6 | . . . . . . . . . . . . . . . 3 . . . . . 2 1 . . . formatsys_high 47 | . . . . . . . . . . 5 . 6 . 4 6 1 8 8 4 . 2 2 . . 1 Relay Couplers Released 70 | . . . . . . . . 10 . 14 . 13 . 8 . 13 . 9 . . 1 . . . 2 Machine Destruction 70 | . . . . . . . . 10 . 14 . 13 . 8 . 13 . 9 . . 1 . . . 2 Attached 37 | . . . . . . . . . . 3 . 5 . 2 6 2 4 5 3 . 2 1 . . 4 Robots Rewired 21 | . . . . . . . . . . . . . . . . . . . . . . 21 . . . Allies Hacked . | . . . . . . . . . . . . . . . . . . . . . . . . . . Hacks Repelled . | . . . . . . . . . . . . . . . . . . . . . . . . . . Allies | -11 -10 -10 -9 -9 -9 -8 -8 -8 -8 -8 -7 -7 -7 -7 -6 -6 -6 -6 -5 -5 -5 -5 -5 -5 -5 -------- Run | Scr Mat Min Mat Min Exi Min Mat Gar Mat Gar Fac Gar Fac Gar Fac Gar Fac Gar Fac Was Fac Ext Cet Arc Hub Total Allies 117 | . . . . . . . . . . 7 . 7 . 5 11 2 13 11 4 21 4 31 . . 1 Largest Group 24 | . . . . . . . . . . 4 1 3 2 3 6 2 10 6 4 24 24 22 11 . 1 Highest-Rated Group 822 | . . . . . . . . . . 43 15 71 44 36 149 58 278 180 116 822 822 692 346 . 41 Highest-Rated Ally 81 | . . . . . . . . . . 18 15 34 30 16 41 29 32 81 41 50 50 49 37 . 41 Total Orders 7 | . . . . . . . . . . . . . 1 . . . . 4 . . . 2 . . . STAY 4 | . . . . . . . . . . . . . 1 . . . . 2 . . . 1 . . . FOLLOW 3 | . . . . . . . . . . . . . . . . . . 2 . . . 1 . . . Ally Attacks 707 | . . . . . . . . . . 11 . 31 5 6 53 . 50 36 15 80 172 149 95 . 4 Total Damage 16195 | . . . . . . . . . . 191 . 670 181 73 1080 . 712 1029 304 2256 4080 3800 1709 . 110 Kills 117 | . . . . . . . . . . 2 . 3 1 . 8 . 7 9 4 7 27 36 13 . . Allies Corrupted 5 | . . . . . . . . . . . . . . . . . 2 . . . . 2 . . 1 Allies Melted . | . . . . . . . . . . . . . . . . . . . . . . . . . . Intel | -11 -10 -10 -9 -9 -9 -8 -8 -8 -8 -8 -7 -7 -7 -7 -6 -6 -6 -6 -5 -5 -5 -5 -5 -5 -5 ------- Run | Scr Mat Min Mat Min Exi Min Mat Gar Mat Gar Fac Gar Fac Gar Fac Gar Fac Gar Fac Was Fac Ext Cet Arc Hub Robot Analysis Total 6 | . . . 3 . . . . . 2 . . . 1 . . . . . . . . . . . . Derelict Logs Recovered 3 | . . . . 3 . . . . . . . . . . . . . . . . . . . . . Drone Launches . | . . . . . . . . . . . . . . . . . . . . . . . . . . Drone Recoveries . | . . . . . . . . . . . . . . . . . . . . . . . . . . Exploration | -11 -10 -10 -9 -9 -9 -8 -8 -8 -8 -8 -7 -7 -7 -7 -6 -6 -6 -6 -5 -5 -5 -5 -5 -5 -5 ------------- Run | Scr Mat Min Mat Min Exi Min Mat Gar Mat Gar Fac Gar Fac Gar Fac Gar Fac Gar Fac Was Fac Ext Cet Arc Hub Turns Passed 20372 | 66 101 186 1262 665 354 345 233 423 734 1485 46 1284 397 527 976 1133 1029 1155 536 403 1901 3582 569 318 662 Spaces Moved 11481 | 69 79 180 924 493 299 273 113 273 433 1035 39 653 245 289 580 537 655 569 273 184 1019 1635 220 116 296 Core 228 | 10 24 180 9 . . . . . 1 . . . . . . . . . . . . . . . 4 Treads 5135 | . . . . . . . . . . . . 210 89 . . 346 182 569 273 184 1019 1635 220 116 292 Legs 1156 | . . . . . 2 . . . 5 . . 345 . 33 580 191 . . . . . . . . . Wheels 4962 | 59 55 . 915 493 297 273 113 273 427 1035 39 98 156 256 . . 473 . . . . . . . . Hover . | . . . . . . . . . . . . . . . . . . . . . . . . . . Flight . | . . . . . . . . . . . . . . . . . . . . . . . . . . Fastest Speed 50 | 50 50 50 50 100 100 120 110 110 120 120 120 85 120 120 143 143 110 180 180 180 180 180 160 180 50 Average Speed 147 | 82 77 50 106 107 110 121 119 119 134 120 120 153 141 123 143 184 136 180 181 184 180 180 179 180 183 Slowest Speed 1550 | 90 90 50 130 110 170 140 120 120 1300 120 120 220 180 175 210 220 200 200 200 200 180 180 180 180 1550 Overloaded Moves 3 | . . . . . . . . . . . . 3 . . . . . . . . . . . . . Propulsion Burnouts . | . . . . . . . . . . . . . . . . . . . . . . . . . . Robots Hopped . | . . . . . . . . . . . . . . . . . . . . . . . . . . Cave-ins Triggered . | . . . . . . . . . . . . . . . . . . . . . . . . . . Exploration Rate (%) 49 | 4 25 34 92 93 69 61 19 51 40 82 1 86 8 43 20 76 23 60 9 88 36 93 71 77 34 Regions Visited 25 Branch Regions 8 Pre-discovered Areas 2 | . . . . 2 . . . . . . . . . . . . . . . . . . . . . Known Exits Taken 6 | . . . . . . . 1 . 1 . 1 . 1 . 1 . 1 . . . . . . . . Unknown Exits Taken 11 | 1 1 1 1 1 1 1 . . . . . . . . . . . . . . 1 1 1 1 . Scrap Searched 3 | . . . . 2 . 1 . . . . . . . . . . . . . . . . . . . Spaces Dug 34 | . . . . . . . . . 1 . . . . . . . 2 . . . 2 25 . . 4 Terrain Destroyed 672 | . . . 44 17 . . 30 . 2 9 . 13 . . 1 152 3 . . . 3 181 10 7 200 Melee 7 | . . . . . . . . . 1 . . . . . . . . . . . 2 2 . . 2 Projectile 36 | . . . . 4 . . 1 . 1 1 . . . . 1 3 3 . . . 1 1 10 7 3 AOE 629 | . . . 44 13 . . 29 . . 8 . 13 . . . 149 . . . . . 178 . . 195 Terrain Rammed . | . . . . . . . . . . . . . . . . . . . . . . . . . . Walls Destroyed . | . . . . . . . . . . . . . . . . . . . . . . . . . . Machines Disabled . | . . . . . . . . . . . . . . . . . . . . . . . . . . Actions | -11 -10 -10 -9 -9 -9 -8 -8 -8 -8 -8 -7 -7 -7 -7 -6 -6 -6 -6 -5 -5 -5 -5 -5 -5 -5 --------- Run | Scr Mat Min Mat Min Exi Min Mat Gar Mat Gar Fac Gar Fac Gar Fac Gar Fac Gar Fac Was Fac Ext Cet Arc Hub Total 13657 | 74 98 274 1045 615 323 280 158 360 522 1218 38 839 292 385 680 624 739 670 297 227 1067 1986 295 185 366 Wait 598 | . . 86 23 96 . . 17 70 39 16 . 42 29 7 27 4 12 13 . 1 1 73 1 41 . Move 11459 | 68 78 179 923 492 298 272 113 272 432 1034 38 652 244 288 579 536 655 568 273 183 1018 1634 219 115 296 Hop . | . . . . . . . . . . . . . . . . . . . . . . . . . . Pick Up 154 | . 3 1 15 6 6 2 1 9 3 7 . 13 4 9 12 12 7 14 4 3 8 8 2 . 5 Fast Attach 96 | 6 1 5 8 1 8 . 2 . 13 2 . 11 3 6 6 . 1 6 1 6 1 1 7 1 . Attach 81 | . 1 . 5 . . 1 1 . 1 3 . 17 1 4 6 5 4 6 2 1 2 5 4 2 10 Detach 20 | . 1 . . . 2 . . . . . . 5 1 1 1 1 . 1 1 . 1 2 3 . . Swap 71 | . . . 2 4 1 . . 1 1 7 . 5 1 2 6 6 10 5 1 . 4 6 1 1 7 Drop 112 | . 2 3 . 7 8 1 . 3 4 11 . 2 6 . 7 8 3 7 . 9 6 7 4 1 13 Fire 725 | . 12 . 69 9 . 4 24 5 28 42 . 50 1 33 35 39 41 32 7 24 18 158 54 24 16 Melee 176 | . . . . . . . . . 1 . . 21 2 27 . . 6 3 8 . 4 90 . . 14 Ram 5 | . . . . . . . . . . . . . . . . . . . . . . . . . 5 Kick 1 | . . . . . . . . . . . . . . . 1 . . . . . . . . . . Crush . | . . . . . . . . . . . . . . . . . . . . . . . . . . Escape Stasis 157 | . . . . . . . . . . 96 . 21 . 8 . 13 . 14 . . 3 2 . . . Rewire 2 | . . . . . . . . . . . . . . . . . . 1 . . 1 . . . . Trap . | . . . . . . . . . . . . . . . . . . . . . . . . . . Miscellaneous . | . . . . . . . . . . . . . . . . . . . . . . . . . . Route ------- -11/Scrapyard -10/Materials -10/Mines -9/Materials (discovered 4 exits: *Mat x3 / *Min) -9/Mines (discovered 2 exits: *Mat / *Exi) -9/Exiles -8/Mines -8/Materials -8/Garrison -8/Materials -8/Garrison (discovered 3 exits: *Fac x3) -7/Factory (discovered 2 exits: Sto / Gar) -7/Garrison (discovered 3 exits: *Fac x3) -7/Factory -7/Garrison -6/Factory (discovered 2 exits: *Fac / Gar) -6/Garrison (discovered 3 exits: *Fac x3) -6/Factory (discovered 4 exits: *Fac / Low x2 / Gar) -6/Garrison (discovered 2 exits: *Fac x2) -5/Factory (discovered 2 exits: *Ext / Gar) -5/Waste -5/Factory (discovered 3 exits: *Fac x2 / *Ext) -5/Extension (discovered 2 exits: *Fac / *Cet) -5/Cetus (discovered 2 exits: *Fac / *Arc) -5/Archives (discovered 2 exits: *Fac / *Hub) -5/Hub_04(d) History --------- Turn | Location | Event 3 | -11/Scrapyard | Discovered new exit (range 16) 67 | -11/Scrapyard | Entered Materials 159 | -10/Materials | Core integrity fell below 50% 161 | -10/Materials | Discovered new exit (range 12) 168 | -10/Materials | Entered Mines 170 | -10/Mines | Assembled infested the area 175 | -10/Mines | Assisted by a Guerilla fighting off Assembled 176 | -10/Mines | Found the Drone Emporium 177 | -10/Mines | Found Prototype Device 177 | -10/Mines | Identified Decoy Drone Bay 185 | -10/Mines | Lost 5 parts (1p1n3w) 309 | -10/Mines | Build established: Mutant 319 | -10/Mines | Core integrity fell below 20% 351 | -10/Mines | Discovered new exit (range 7) 354 | -10/Mines | Entered Materials 354 | -9/Materials | Evolved 2 slots: Utility x1, Weapon x1 792 | -9/Materials | Build established: Tank 830 | -9/Materials | Discovered new exit (range 8) 983 | -9/Materials | Discovered new exit (range 15) 1184 | -9/Materials | Core integrity fell below 50% 1218 | -9/Materials | Lost 3 parts (1n1u1w) 1271 | -9/Materials | Discovered new exit (range 16) 1515 | -9/Materials | Discovered new exit (range 16) 1616 | -9/Materials | Entered Mines 1796 | -9/Mines | Deemed a non-threat by the Exiles lab entrance 1796 | -9/Mines | Discovered new exit (range 5) 1875 | -9/Mines | Discovered new exit (range 6) 1896 | -9/Mines | Learned location of Zion (-6) 1905 | -9/Mines | Met a Derelict shopkeep closing up shop 2049 | -9/Mines | Build established: Mutant 2281 | -9/Mines | Entered Exiles 2309 | -9/Exiles | Met 8R-AWN 2327 | -9/Exiles | Met EX-HEX 2398 | -9/Exiles | Met EX-DEC 2425 | -9/Exiles | Met EX-BIN 2440 | -9/Exiles | Aligned with FarCom system 2441 | -9/Exiles | Given EX-Vault access code 2466 | -9/Exiles | Opened EX-Vault 2473 | -9/Exiles | Found Prototype Device 2473 | -9/Exiles | Identified Trap Reconfigurator 2477 | -9/Exiles | Found Prototype Energy Cannon 2477 | -9/Exiles | Identified Gui. Plasma Cannon 2496 | -9/Exiles | Found Prototype Leg 2496 | -9/Exiles | Identified Potential Leg 2499 | -9/Exiles | Found Potential Leg 2530 | -9/Exiles | Warned to stay clear of 0b10 Research branches 2622 | -9/Exiles | Discovered new exit (range 14) 2635 | -9/Exiles | Stole three prototypes: Trap Reconfigurator, Gui. Plasma Cannon, Potential Leg 2635 | -9/Exiles | Entered Mines 2695 | -8/Mines | Build established: Hauler-Mutant 2971 | -8/Mines | Discovered new exit (range 8) 2980 | -8/Mines | Entered Materials 2980 | -8/Materials | Evolved 2 slots: Propulsion x1, Utility x1 3150 | -8/Materials | Garrison activated, responded to threat 3213 | -8/Materials | Identified exit to Garrison 3213 | -8/Materials | Entered Garrison 3282 | -8/Garrison | Garrison Relay disabled 3428 | -8/Garrison | Build established: Hauler-Skirmisher 3446 | -8/Garrison | Triggered checkpoint 3498 | -8/Garrison | Discovered new exit (range 8) 3513 | -8/Garrison | Installed Relay Interface Framework 3556 | -8/Garrison | Triggered checkpoint 3569 | -8/Garrison | Garrison Relay disabled 3636 | -8/Garrison | Entered Materials 4317 | -8/Materials | Identified exit to Garrison 4370 | -8/Materials | Entered Garrison 4445 | -8/Garrison | Triggered checkpoint 4470 | -8/Garrison | Triggered checkpoint 4674 | -8/Garrison | Discovered new exit (range 15) 4732 | -8/Garrison | Triggered checkpoint 4767 | -8/Garrison | Garrison Relay disabled 4886 | -8/Garrison | Discovered new exit (range 15) 5136 | -8/Garrison | Triggered checkpoint 5166 | -8/Garrison | Garrison Relay disabled 5236 | -8/Garrison | Triggered checkpoint 5295 | -8/Garrison | Discovered new exit (range 12) 5315 | -8/Garrison | Expanded RIF knowledge: Threat Obfuscation 5362 | -8/Garrison | Build established: Bothacker-Mutant 5376 | -8/Garrison | Triggered checkpoint 5398 | -8/Garrison | Garrison Relay disabled 5458 | -8/Garrison | Identified exit to Factory 5610 | -8/Garrison | Triggered checkpoint 5653 | -8/Garrison | Garrison Relay disabled 5855 | -8/Garrison | Entered Factory 5855 | -7/Factory | Accompanied by 1 ally 5855 | -7/Factory | Evolved 2 slots: Utility x2 5856 | -7/Factory | Identified exit to Storage 5857 | -7/Factory | FarCom data flow suspended 5900 | -7/Factory | Identified exit to Garrison 5901 | -7/Factory | Entered Garrison 5901 | -7/Garrison | Accompanied by 1 ally 5928 | -7/Garrison | Triggered checkpoint 5966 | -7/Garrison | Lost 3 parts (1n2w) 6003 | -7/Garrison | Garrison Relay disabled 6080 | -7/Garrison | Triggered checkpoint 6132 | -7/Garrison | Triggered checkpoint 6147 | -7/Garrison | Triggered checkpoint 6187 | -7/Garrison | Lost 6 parts (1p1n4w) 6345 | -7/Garrison | Discovered new exit (range 8) 6396 | -7/Garrison | Triggered checkpoint 6427 | -7/Garrison | Garrison Relay disabled 6544 | -7/Garrison | Discovered new exit (range 8) 6574 | -7/Garrison | Triggered checkpoint 6641 | -7/Garrison | Core integrity fell below 50% 6655 | -7/Garrison | Lost 6 parts (1p2n1u2w) 6670 | -7/Garrison | Triggered checkpoint 6929 | -7/Garrison | Discovered new exit (range 12) 6951 | -7/Garrison | Identified exit to Factory 6970 | -7/Garrison | Expanded RIF knowledge: Zone Cloak 7048 | -7/Garrison | Triggered checkpoint 7106 | -7/Garrison | Garrison Relay disabled 7185 | -7/Garrison | Entered Factory 7185 | -7/Factory | Accompanied by 2 allies 7516 | -7/Factory | Identified exit to Garrison 7549 | -7/Factory | Fabricated Lrg. Storage Unit (x1) 7574 | -7/Factory | Fabricated Lrg. Storage Unit (x1) 7582 | -7/Factory | Entered Garrison 7588 | -7/Garrison | Expanded RIF knowledge: Autoassimilate 7622 | -7/Garrison | Triggered checkpoint 7678 | -7/Garrison | Garrison Relay disabled 7752 | -7/Garrison | Triggered checkpoint 7865 | -7/Garrison | Destroyed 8 combat bots 7884 | -7/Garrison | Build established: Botlord-Mutant 7898 | -7/Garrison | Triggered checkpoint 7923 | -7/Garrison | Discovered new exit (range 12) 7956 | -7/Garrison | Triggered checkpoint 7986 | -7/Garrison | Garrison Relay disabled 8047 | -7/Garrison | Core integrity fell below 20% 8080 | -7/Garrison | Lost 4 parts (1p2n1u) 8109 | -7/Garrison | Entered Factory 8109 | -6/Factory | Evolved 2 slots: Utility x2 8392 | -6/Factory | Spotted B-75 Beast 8410 | -6/Factory | Destroyed B-75 Beast 8685 | -6/Factory | Identified exit to Garrison 8726 | -6/Factory | Discovered new exit (range 5) 9085 | -6/Factory | Entered Garrison 9144 | -6/Garrison | Triggered checkpoint 9159 | -6/Garrison | Triggered checkpoint 9213 | -6/Garrison | Destroyed 9 combat bots 9331 | -6/Garrison | Discovered new exit (range 15) 9378 | -6/Garrison | Triggered checkpoint 9421 | -6/Garrison | Garrison Relay disabled 9603 | -6/Garrison | Discovered new exit (range 14) 9642 | -6/Garrison | Expanded RIF knowledge: Patrol Navigation 9696 | -6/Garrison | Triggered checkpoint 9751 | -6/Garrison | Lost 4 parts (2u2w) 9759 | -6/Garrison | Garrison Relay disabled 10070 | -6/Garrison | Triggered checkpoint 10103 | -6/Garrison | Garrison Relay disabled 10188 | -6/Garrison | Discovered new exit (range 13) 10218 | -6/Garrison | Entered Factory 10218 | -6/Factory | Accompanied by 2 allies 10239 | -6/Factory | Discovered new exit (range 8) 10434 | -6/Factory | Identified exit to Lower Caves 10752 | -6/Factory | Found Hvy. Reactive Plating 10966 | -6/Factory | Fabricated Force Field (x2) 10966 | -6/Factory | Fabricated G-50 Soldier? 11247 | -6/Factory | Identified exit to Garrison 11247 | -6/Factory | Entered Garrison 11247 | -6/Garrison | Accompanied by 5 allies 11505 | -6/Garrison | Garrison Relay disabled 11653 | -6/Garrison | Spotted B-75 Beast 11676 | -6/Garrison | Hijacked Beast 5a control node with streamctrl_high 11806 | -6/Garrison | Triggered checkpoint 11865 | -6/Garrison | Discovered new exit (range 9) 11968 | -6/Garrison | Triggered checkpoint 12032 | -6/Garrison | Garrison Relay disabled 12185 | -6/Garrison | Discovered new exit (range 9) 12212 | -6/Garrison | Expanded RIF knowledge: Autoassimilate 12244 | -6/Garrison | Triggered checkpoint 12294 | -6/Garrison | Garrison Relay disabled 12402 | -6/Garrison | Entered Factory 12402 | -5/Factory | Accompanied by 1 ally 12402 | -5/Factory | Evolved 2 slots: Utility x2 12505 | -5/Factory | Local fabrication network quarantined 12543 | -5/Factory | Fabricated Lgt. Quantum Reactor (x2) 12593 | -5/Factory | Identified exit to Garrison 12731 | -5/Factory | Discovered new exit (range 16) 12866 | -5/Factory | Garrison activated, responded to threat 12938 | -5/Factory | Sucked down chute 12938 | -5/Factory | Entered Waste 12938 | -5/Waste | Met up with 1 ally sucked down the chute earlier 12939 | -5/Waste | Met a frightened Derelict 12956 | -5/Waste | Spotted C-40 Crusher 12970 | -5/Waste | Allies destroyed C-40 Crusher 12982 | -5/Waste | Found Damper Plating 12984 | -5/Waste | Spotted C-40 Crusher 12985 | -5/Waste | 4 allies followed down the chute 12995 | -5/Waste | Spotted C-40 Crusher 13002 | -5/Waste | Allies destroyed C-40 Crusher 13023 | -5/Waste | Spotted C-40 Crusher 13028 | -5/Waste | Allies destroyed C-40 Crusher 13036 | -5/Waste | Allies destroyed C-40 Crusher 13037 | -5/Waste | Spotted C-40 Crusher 13044 | -5/Waste | Allies destroyed C-40 Crusher 13055 | -5/Waste | Spotted C-40 Crusher 13073 | -5/Waste | Allies destroyed C-40 Crusher 13112 | -5/Waste | Warlord forces began an assault 13146 | -5/Waste | Found Broken Adv. Force Booster 13298 | -5/Waste | Discovered new exit (range 14) 13341 | -5/Waste | Entered Factory 13341 | -5/Factory | Accompanied by 24 allies 13363 | -5/Factory | Garrison activated, responded to threat 13749 | -5/Factory | Discovered new exit (range 16) 14330 | -5/Factory | Discovered new exit (range 15) 14587 | -5/Factory | Identified exit to Factory 15137 | -5/Factory | Discovered new exit (range 13) 15242 | -5/Factory | Entered Extension 15242 | -5/Extension | Accompanied by 9 allies 15330 | -5/Extension | Warlord forces began an assault 15395 | -5/Extension | Spotted B-75 Beast 15399 | -5/Extension | Allies destroyed B-75 Beast 15413 | -5/Extension | Spotted B-75 Beast 15424 | -5/Extension | Allies destroyed B-75 Beast 15587 | -5/Extension | Rescued a captive Derelict 16177 | -5/Extension | Rescued a captive Derelict 16187 | -5/Extension | Rescued a captive Derelict 16449 | -5/Extension | Rescued a captive Derelict 16450 | -5/Extension | Rescued a captive Derelict 16535 | -5/Extension | Discovered exit to Factory (range 10) 16537 | -5/Extension | Discovered new exit (range 6) 18806 | -5/Extension | Disrupted transfer network 18824 | -5/Extension | Entered Cetus 18824 | -5/Cetus | Accompanied by 11 allies 18850 | -5/Cetus | Spotted Cetus Guard 18850 | -5/Cetus | Spotted Cetus Guard 18854 | -5/Cetus | Spotted Cetus Guard 18856 | -5/Cetus | Spotted Cetus Guard 18860 | -5/Cetus | Allies destroyed Cetus Guard 18861 | -5/Cetus | Allies destroyed Cetus Guard 18862 | -5/Cetus | Allies destroyed Cetus Guard 18870 | -5/Cetus | Allies destroyed Cetus Guard 18975 | -5/Cetus | Discovered new exit (range 16) 19006 | -5/Cetus | Spotted Cetus Guard 19006 | -5/Cetus | Spotted Cetus Guard 19011 | -5/Cetus | Spotted Cetus Guard 19030 | -5/Cetus | Destroyed Cetus Guard 19035 | -5/Cetus | Destroyed Cetus Guard 19038 | -5/Cetus | Spotted Cetus Guard 19054 | -5/Cetus | Cetus Manufacturing Module disabled 19059 | -5/Cetus | Destroyed Cetus Guard 19094 | -5/Cetus | Destroyed Cetus Guard 19107 | -5/Cetus | Discovered exit to Factory (range 15) 19126 | -5/Cetus | Met Revision 17 19393 | -5/Cetus | Entered Archives 19610 | -5/Archives | Discovered new exit (range 16) 19625 | -5/Archives | Unable to access archive contents 19643 | -5/Archives | Unable to access archive contents 19662 | -5/Archives | Discovered exit to Factory (range 16) 19711 | -5/Archives | Entered Hub_04(d) 20133 | -5/Hub_04(d) | Identified exit to Garrison 20288 | -5/Hub_04(d) | Network Hub disabled 20291 | -5/Hub_04(d) | Spotted Lightning 20291 | -5/Hub_04(d) | Spotted Lightning 20291 | -5/Hub_04(d) | Spotted Lightning 20291 | -5/Hub_04(d) | Spotted Lightning 20291 | -5/Hub_04(d) | Spotted Lightning 20293 | -5/Hub_04(d) | Spotted Lightning 20294 | -5/Hub_04(d) | Spotted Lightning 20295 | -5/Hub_04(d) | Spotted Lightning 20300 | -5/Hub_04(d) | System corruption reached 10% 20315 | -5/Hub_04(d) | Core integrity fell below 50% 20351 | -5/Hub_04(d) | Lost 13 parts (1p2n6u4w) 20369 | -5/Hub_04(d) | Core integrity fell below 20% 20373 | -5/Hub_04(d) | Destroyed by Lightning with EMDS Last Messages --------------- 20363_ DNQJ051>ELBJSBZC8|RERQXTGO 20363_ Discarded Adv. Melee Analysis Suite. 20363_ Penetrated by EMDS Slug. 20364_ Critical hit. 20364_ Dropped Relay Coupler [Swarmer]. 20365_ Dropped Relay Coupler [Duelist]. 20365_ Dropped Lrg. Storage Unit. 20366_ EMDS Slug penetrates Wall. 20367_ Dropped Lrg. Storage Unit. 20367_ Dropped Lgt. Quantum Reactor. 20368_ Dropped Damper Plating. 20368_ Penetrated by EMDS Slug. 20369_ EMDS Slug penetrates Wall. 20370_ Slammed into Lightning. 20370_ EMDS Slug penetrates Wall. 20371_ The unstable cave ceiling collapses. 20371_ Slammed into Lightning. 20371_ EMDS Slug penetrates Wall. 20373_ Penetrated by EMDS Slug. 20373_ EMDS Slug penetrates Wall. Map ----- +----------------------------------------------------+ | ???????????????????????????????? | | ???????????????????????????????? | | ???????????????????????????????? | | ???????????????????????????????? | | ???????????????????????????????? | | ???????????????????????????????? | | ????????########???????????????? | | ????????# #???????????????? | | ????????# """" #???????????????? | | ????????# """" #???????????????? | | ????????# """" #???????????????? | | ????????# """" #???????????????? | | ????????# #???????????? ?# | | ?????#######+###???????????# ## | | ?????# #?????????????# ## | | ?????# ##### #?????????????# ## | | ?????# #???# #?????????????# ## | | ?????# #####+##????????????# ## | | ?????# #!!! #????????????# ## | | ?????# #![! #????????????# ## | | ?????#!#!!" " #????????????# ## | | ?????#!]!!"G" #????????????# ## | | ?????#!#!!*"" #????????????# ## | | ?????#*/! ! #????????????# ## | | ?????#!##/#####???????????## ## | | ?????#h@i ################# # | | ???###h [*%=!=*%!% | | ####;;;;;;;;############### | | # ## # # | | # """ ## """ ## ## | | # """ ## ## ## | | # = """ ## """ ## ## | | # [%= """ ## ## ## | | # ! ! ## """ ## ## | | #;;;; | ;;####/## ## ## | | # #??# ## """ ##%=## | | # #;####### #"! # | | # #; # ""#" # | | # " " # ""#" # | | # " # T"#T # | | # " # ""#" + | | # " " # ""#" # | | # " " # #" # | | # "" """""####+##### # | | #?"" !]] # | | ??"" =]% ## | | # #######+#####+##? | | # # #????# #? | | ???### ### #????# """ #? | | ????????#####++######"" #? | +----------------------------------------------------+ Best States ------------- Heat Dissipation 56 Coolant Potential 50 Energy Generation 25 Energy Capacity 350 Matter Stores 550 Matter Capacity 550 Sight Range 16 Terrain Scan Density 10 Additional Mass Support 9 Armor Coverage 1200 Resistance: KI 40 Resistance: TH 15 Resistance: EM 90 Power Shielding 66 Propulsion Shielding 66 Evasion (%) 50 Melee Accuracy 8 Recoil Reduction 3 Offensive Hacking 24 Defensive Hacking 20 Relay Coupler Types 86 Relay Coupler Value 4 Item Schematics ----------------- Lrg. Storage Unit | -9/Materials | Scanalyzed Hvy. Treads | -7/Factory | Hacked Imp. Trap Extractor | -6/Factory | Scanalyzed Force Lance | -5/Extension | Hacked Variable Charge Gun | -5/Extension | Hacked Adv. Actuator Array | -5/Extension | Hacked Robot Schematics ------------------ None Fabricated ------------ Lrg. Storage Unit | x1 | -7/Factory Lrg. Storage Unit | x1 | -7/Factory Force Field | x2 | -6/Factory | Preloaded G-50 Soldier | x3 | -6/Factory | Preloaded Lgt. Quantum Reactor | x2 | -5/Factory | Preloaded Alien Tech Used ----------------- None Achievements -------------- None Challenges ------------ None Game ------ Seed NovaAngularDisintegrator Manual? 0 Play Time 03:09:21 Cumulative 207.6 hours Start 2021.02.16 @ 10:58:08 End 2021.02.16 @ 14:31:57 Sessions 1 Manual Loads 0 Difficulty Rogue Special Mode None Game No. 88 Rogue 84 Adventurer 0 Explorer 4 Win Type - Total 12 Types 4/0/2/2/0/2/2/0/0 Lore% 73 Gallery% 78 Achievement% 67 Wizard Run 0 Options --------- ASCII 0 Keyboard 0 Movement Mouse Keybinds 0 Fullscreen 1 Font 18/SmallcapsGlow Map View 76x50 Tactical HUD 1 Map Filters NONE Filters NONE Steam 1 RUN: 96b58c83-acb5-407e-a408-6668c66a6927